bitfinex-derivatives/quotes_BTCF0:USTF0_20240910
["timestamp","ask_amount","ask_price","bid_price","bid_amount"]
[1725951161369,0.0024,56877.0,56876.0,0.266906]
[1725951169581,0.0024,56877.0,56876.0,0.106906]
[1725951170178,0.090304,56877.0,56876.0,0.106906]
[1725951172081,0.0024,56877.0,56876.0,0.106906]
[1725951172581,0.250304,56877.0,56876.0,0.019]
[1725951172786,0.297604,56877.0,56876.0,0.019]
[1725951173681,0.137604,56877.0,56876.0,0.019]
[1725951174084,0.137604,56877.0,56876.0,0.106906]
[1725951174286,0.090304,56877.0,56876.0,0.106906]
[1725951174978,0.0024,56877.0,56876.0,0.106906]
[1725951175183,0.0024,56877.0,56876.0,0.266906]
[1725951176584,0.0024,56877.0,56876.0,0.106906]
[1725951178491,0.087703,56878.0,56876.0,0.106906]
[1725951178692,0.087703,56878.0,56877.0,0.0004]
[1725951179791,0.088703,56878.0,56877.0,0.0004]
[1725951180684,0.088703,56878.0,56877.0,0.0174]
[1725951180685,0.089703,56878.0,56877.0,0.0174]
[1725951180889,0.089703,56878.0,56877.0,0.07002163]
[1725951181591,0.36610754,56878.0,56877.0,0.0174]
[1725951185889,0.4712326,56878.0,56877.0,0.0174]
[1725951186796,0.47123455,56878.0,56877.0,0.0174]
[1725951188400,0.36610949,56878.0,56877.0,0.0174]
[1725951188789,0.47123455,56878.0,56877.0,0.0174]
[1725951189293,0.337606,56878.0,56877.0,0.0174]
[1725951190896,0.249703,56878.0,56877.0,0.0174]
[1725951191192,0.002,56878.0,56877.0,0.105304]
[1725951191411,0.002,56878.0,56877.0,0.45887646]
[1725951191696,0.3789,56891.0,56881.0,0.087898]
[1725951191892,0.0041,56890.0,56883.0,0.0004]
[1725951192099,0.14796808,56891.0,56889.0,0.1530125]
[1725951192297,0.14692807,56891.0,56890.0,0.0004]
[1725951192493,0.09952807,56891.0,56890.0,0.07015]
[1725951193504,0.09952807,56891.0,56889.0,0.17015]
[1725951193702,0.10652807,56891.0,56890.0,0.001]
[1725951195299,0.11052807,56891.0,56889.0,0.07115]
[1725951195495,0.11052807,56891.0,56889.0,0.001]
[1725951196195,0.0004,56890.0,56889.0,0.001]
[1725951196496,0.0004,56890.0,56888.0,0.158037]
[1725951196704,0.0004,56889.0,56888.0,0.158037]
[1725951197089,0.0004,56889.0,56888.0,0.14043262]
[1725951197503,0.0004,56889.0,56888.0,0.087887]
[1725951199196,0.0034,56889.0,56888.0,0.087887]
[1725951199401,0.0084,56889.0,56888.0,0.087887]
[1725951199705,0.0084,56889.0,56888.0,0.134887]
[1725951201300,0.096286,56889.0,56888.0,0.134887]
[1725951212309,0.096286,56889.0,56888.0,0.18743262]
[1725951214203,0.096286,56889.0,56888.0,0.28743262]
[1725951214404,0.096286,56889.0,56888.0,0.234887]
[1725951214908,0.096286,56889.0,56888.0,0.147]
[1725951215105,0.096286,56889.0,56888.0,0.05255888]
[1725951216500,0.08789,56886.0,56885.0,0.07015]
[1725951216706,0.08829,56886.0,56884.0,0.258043]
[1725951216905,0.0004,56885.0,56884.0,0.258043]
[1725951217206,0.08829,56886.0,56884.0,0.258043]
[1725951217414,0.08829,56886.0,56885.0,0.07055]
[1725951217613,0.08829,56886.0,56885.0,0.07155]
[1725951218613,0.08829,56886.0,56885.0,0.0014]
[1725951219013,0.08929,56886.0,56885.0,0.0004]
[1725951220513,0.08929,56886.0,56885.0,0.0014]
[1725951222001,0.08929,56886.0,56885.0,0.0890878]
[1725951223613,0.08929,56886.0,56885.0,0.0014]
[1725951225817,0.06929,56886.0,56885.0,0.0014]
[1725951228714,0.0014,56886.0,56885.0,0.1014]
[1725951228920,0.0014,56886.0,56885.0,0.17167226]
[1725951229306,0.0014,56886.0,56885.0,0.25956426]
[1725951230628,0.0014,56886.0,56885.0,0.189292]
[1725951235921,0.0014,56886.0,56885.0,0.30830241]
[1725951236619,0.087888,56888.0,56887.0,0.087889]
[1725951236819,0.087888,56888.0,56887.0,0.20729941]
[1725951237827,0.089888,56888.0,56887.0,0.20729941]
[1725951238528,0.092888,56888.0,56887.0,0.20729941]
[1725951240632,0.092888,56888.0,56887.0,0.20730744]
[1725951242118,0.092888,56888.0,56887.0,0.088289]
[1725951245331,0.30927189,56888.0,56887.0,0.0004]
[1725951245727,0.22138389,56888.0,56887.0,0.0004]
[1725951246228,0.005,56888.0,56887.0,0.1004]
[1725951246536,0.005,56888.0,56887.0,0.188289]
[1725951248822,0.005,56888.0,56887.0,0.19996674]
[1725951250327,0.005,56888.0,56887.0,0.42386792]
[1725951251026,0.005,56888.0,56887.0,0.31856319]
[1725951252527,0.005,56888.0,56887.0,0.42383321]
[1725951252735,0.005,56888.0,56887.0,0.31856319]
[1725951253740,0.004,56888.0,56887.0,0.32956319]
[1725951254034,0.004,56888.0,56887.0,0.43482311]
[1725951255035,0.001,56888.0,56887.0,0.43482311]
[1725951255233,0.002,56888.0,56887.0,0.44482311]
[1725951256534,0.002,56888.0,56887.0,0.44382311]
[1725951257239,0.002,56888.0,56887.0,0.21996674]
[1725951259737,0.002,56888.0,56887.0,0.208289]
[1725951260034,0.002,56888.0,56887.0,0.108289]
[1725951260243,0.002,56888.0,56887.0,0.27849101]
[1725951260940,0.089887,56888.0,56887.0,0.09060201]
[1725951261129,0.270174,56888.0,56887.0,0.0204]
[1725951261441,0.29867109,56888.0,56887.0,0.0204]
[1725951261929,0.270174,56888.0,56887.0,0.0204]
[1725951262940,0.3107846,56888.0,56887.0,0.0204]
[1725951263130,0.282287,56888.0,56887.0,0.0204]
[1725951265538,0.282287,56888.0,56887.0,0.09061676]
[1725951266244,0.370174,56888.0,56887.0,0.09061676]
[1725951272338,0.370174,56888.0,56887.0,0.0204]
[1725951285749,0.370174,56888.0,56887.0,0.09061676]
[1725951287356,0.370174,56888.0,56887.0,0.0204]
[1725951289453,0.39867197,56888.0,56887.0,0.0204]
[1725951289756,0.370174,56888.0,56887.0,0.0204]
[1725951290056,0.39867214,56888.0,56887.0,0.0204]
[1725951290555,0.39867214,56888.0,56887.0,0.07306998]
[1725951291055,0.50413127,56888.0,56887.0,0.0204]
[1725951291257,0.087899,56880.0,56879.0,0.0082]
[1725951291452,0.09660768,56879.0,56878.0,0.05276842]
[1725951291650,0.087906,56876.0,56873.0,0.05276842]
[1725951291955,0.188309,56874.0,56873.0,0.05276842]
[1725951292451,0.088309,56874.0,56871.0,0.0455]
[1725951292653,0.0004,56872.0,56871.0,0.11576323]
[1725951293052,0.0004,56872.0,56871.0,0.0455]
[1725951293557,0.0004,56872.0,56871.0,0.20365697]
[1725951293854,0.0004,56872.0,56871.0,0.133413]
[1725951294051,0.0004,56872.0,56871.0,0.147413]
[1725951295452,0.087907,56875.0,56873.0,0.08791]
[1725951295655,0.087907,56875.0,56874.0,0.11945513]
[1725951296355,0.087907,56875.0,56874.0,0.11917977]
[1725951296663,0.088907,56875.0,56874.0,0.20695868]
[1725951296849,0.088907,56875.0,56874.0,0.08817891]
[1725951297046,0.089907,56875.0,56874.0,0.12222897]
[1725951297258,0.089907,56875.0,56874.0,0.20997414]
[1725951297463,0.088907,56875.0,56874.0,0.09117004]
[1725951297760,0.089907,56875.0,56874.0,0.21195948]
[1725951298149,0.089907,56875.0,56874.0,0.21195635]
[1725951298657,0.089907,56875.0,56874.0,0.0054]
[1725951301254,0.089907,56875.0,56874.0,0.1054]
[1725951301656,0.089907,56875.0,56874.0,0.22414983]
[1725951302170,0.002,56875.0,56874.0,1.43953883]
[1725951303167,0.0041,56882.0,56874.0,1.45688975]
[1725951303168,0.087898,56881.0,56874.0,1.45688975]
[1725951303358,0.087898,56881.0,56880.0,0.1004]
[1725951304267,0.087898,56881.0,56880.0,0.1464]
[1725951304662,0.087898,56881.0,56880.0,0.237299]
[1725951305467,0.088898,56881.0,56880.0,0.237299]
[1725951306161,0.087898,56881.0,56880.0,0.241299]
[1725951309157,0.0041,56885.0,56883.0,0.087894]
[1725951309158,0.087893,56884.0,56883.0,0.087894]
[1725951309364,0.087893,56884.0,56883.0,0.30654479]
[1725951309561,0.087887,56888.0,56887.0,0.087888]
[1725951309764,0.087883,56891.0,56890.0,0.087884]
[1725951309962,0.09996727,56891.0,56890.0,0.188284]
[1725951310166,0.087883,56891.0,56890.0,0.24087086]
[1725951310466,0.087883,56891.0,56890.0,0.24047083]
[1725951310773,0.087883,56891.0,56890.0,0.187884]
[1725951311173,0.087883,56891.0,56890.0,0.24045615]
[1725951311468,0.095883,56891.0,56890.0,0.24145615]
[1725951311866,0.095883,56891.0,56890.0,0.190884]
[1725951311867,0.087883,56891.0,56890.0,0.190884]
[1725951312262,0.087883,56891.0,56890.0,0.194884]
[1725951322774,0.087883,56891.0,56890.0,0.107]
[1725951323077,0.175766,56891.0,56890.0,0.007]
[1725951327976,0.803086,56891.0,56890.0,0.007]
[1725951329472,0.890969,56891.0,56890.0,0.007]
[1725951329673,0.363649,56891.0,56890.0,0.007]
[1725951332469,0.890969,56891.0,56890.0,0.007]
[1725951334671,0.363649,56891.0,56890.0,0.007]
[1725951337771,1.490969,56891.0,56890.0,0.007]
[1725951337977,1.490969,56891.0,56890.0,0.005]
[1725951338480,0.263661,56888.0,56887.0,1e-06]
[1725951338683,0.263661,56888.0,56880.0,0.05257215]
[1725951338684,0.087898,56881.0,56880.0,0.05257215]
[1725951338883,0.087901,56879.0,56878.0,0.05257215]
[1725951339186,0.0944,56880.0,56878.0,0.05263458]
[1725951339479,0.182299,56880.0,56879.0,0.0004]
[1725951339686,0.270198,56880.0,56879.0,0.05263458]
[1725951340085,0.175802,56879.0,56878.0,0.06363458]
[1725951340282,0.176202,56879.0,56878.0,0.06363458]
[1725951340580,0.176202,56879.0,56878.0,0.05263458]
[1725951341184,0.177202,56879.0,56878.0,0.06363458]
[1725951341680,0.178202,56879.0,56878.0,0.07263458]
[1725951341873,0.18990183,56879.0,56878.0,0.07263458]
[1725951342075,0.18990183,56879.0,56878.0,0.02]
[1725951352394,0.27780283,56879.0,56878.0,0.02]
[1725951358391,0.27780283,56879.0,56878.0,0.07263458]
[1725951361295,0.27780283,56879.0,56878.0,0.02]
[1725951362197,0.27780283,56879.0,56878.0,0.09015279]
[1725951362691,0.27780283,56879.0,56878.0,0.02]
[1725951365601,0.30630533,56879.0,56878.0,0.02]
[1725951368103,0.30630533,56879.0,56878.0,0.07268501]
[1725951368292,0.41183997,56879.0,56878.0,0.02]
[1725951369609,0.27780283,56879.0,56878.0,0.02]
[1725951377710,0.3063063,56879.0,56878.0,0.02]
[1725951380013,0.41184094,56879.0,56878.0,0.02]
[1725951384711,0.27780283,56879.0,56878.0,0.09032696]
[1725951390805,0.27780283,56879.0,56878.0,0.02]
[1725951392811,0.27780283,56879.0,56878.0,0.09032696]
[1725951393117,0.27780283,56879.0,56878.0,0.02]
[1725951393118,1.43374715,56879.0,56878.0,0.02]
[1725951393816,1.61880388,56879.0,56878.0,0.02]
[1725951394220,0.175814,56875.0,56874.0,0.05273963]
[1725951394517,0.175818,56874.0,56873.0,0.05273963]
[1725951394707,0.0004,56874.0,56873.0,0.07032696]
[1725951394906,0.0004,56874.0,56865.0,0.0941]
[1725951394907,0.08791,56873.0,56872.0,0.1]
[1725951395115,0.0004,56873.0,56872.0,0.35098264]
[1725951395315,0.088308,56875.0,56872.0,0.35098264]
[1725951395517,0.089308,56875.0,56874.0,0.0104]
[1725951396422,0.089308,56875.0,56874.0,0.1019]
[1725951397414,0.0014,56875.0,56874.0,0.1019]
[1725951397717,0.0004,56875.0,56874.0,0.29760472]
[1725951398013,0.0004,56875.0,56874.0,0.21690613]
[1725951398014,0.0014,56875.0,56874.0,0.21690613]
[1725951398414,0.0024,56875.0,56874.0,0.22490613]
[1725951399615,0.090307,56875.0,56874.0,0.22490613]
[1725951399921,0.090307,56875.0,56874.0,0.15958883]
[1725951402219,0.0024,56875.0,56874.0,0.68706883]
[1725951402521,0.0041,56882.0,56874.0,1.23438]
[1725951402522,0.087899,56881.0,56874.0,1.23438]
[1725951402716,0.087899,56881.0,56880.0,0.0004]
[1725951403021,0.087899,56881.0,56880.0,0.088299]
[1725951403518,0.087899,56881.0,56880.0,0.14093595]
[1725951403910,0.087899,56881.0,56880.0,0.14393595]
[1725951404616,0.088899,56881.0,56880.0,0.14393595]
[1725951405209,0.087899,56881.0,56880.0,0.14393595]
[1725951405415,0.087899,56881.0,56880.0,0.14593595]
[1725951405621,0.087899,56881.0,56880.0,0.093299]
[1725951406736,0.087899,56881.0,56880.0,0.14593595]
[1725951407715,0.087899,56881.0,56880.0,0.093299]
[1725951407917,0.087899,56881.0,56880.0,0.0054]
[1725951410619,0.087899,56881.0,56880.0,0.07550508]
[1725951411810,0.087899,56881.0,56880.0,0.0054]
[1725951413520,0.087899,56881.0,56880.0,0.07549162]
[1725951414925,0.087899,56881.0,56880.0,0.0054]
[1725951424533,0.087899,56881.0,56880.0,0.05796671]
[1725951426134,0.087899,56881.0,56880.0,0.0054]
[1725951430440,0.175798,56881.0,56880.0,0.0054]
[1725951431239,1.399773,56881.0,56880.0,0.05807109]
[1725951431444,1.42827609,56881.0,56880.0,0.0054]
[1725951431640,1.53377104,56881.0,56880.0,0.0054]
[1725951432042,1.53377104,56881.0,56875.0,0.05267109]
[1725951432043,0.175812,56876.0,56875.0,0.05267109]
[1725951432242,0.175812,56876.0,56871.0,0.0041]
[1725951432243,0.175814,56875.0,56874.0,0.05267109]
[1725951432550,0.318514,56875.0,56874.0,0.05267109]
[1725951433856,0.319514,56875.0,56874.0,0.05967109]
[1725951434065,0.320514,56875.0,56874.0,0.06767109]
[1725951434259,0.320514,56875.0,56874.0,0.015]
[1725951435556,0.320514,56875.0,56874.0,0.0126]
[1725951435557,1.535901,56875.0,56874.0,0.0126]
[1725951436961,1.67465773,56875.0,56874.0,0.0126]
[1725951437261,0.68115503,56875.0,56874.0,0.0126]
[1725951437463,0.57568426,56875.0,56874.0,0.0126]
[1725951437851,0.59023553,56875.0,56874.0,0.0126]
[1725951438258,0.4514788,56875.0,56874.0,0.0126]
[1725951438750,1.4910518,56875.0,56866.0,0.0082]
[1725951438952,0.087921,56866.0,56862.0,0.0082]
[1725951439155,0.087929,56861.0,56860.0,0.05264433]
[1725951439350,0.08793,56860.0,56859.0,0.05264433]
[1725951439550,0.087932,56859.0,56858.0,0.05264433]
[1725951439757,0.087933,56858.0,56857.0,0.05264433]
[1725951439960,0.187933,56858.0,56857.0,0.05264433]
[1725951440150,0.087935,56857.0,56855.0,0.09874433]
[1725951440348,0.0004,56856.0,56855.0,0.0461]
[1725951441358,0.0004,56856.0,56855.0,0.0491]
[1725951441760,0.088337,56856.0,56855.0,0.0491]
[1725951442559,0.089337,56856.0,56855.0,0.0491]
[1725951443158,0.089337,56856.0,56855.0,0.003]
[1725951443363,0.08794,56854.0,56850.0,0.05264433]
[1725951443553,0.0004,56851.0,56850.0,0.05264433]
[1725951443858,0.0004,56851.0,56849.0,0.09914433]
[1725951444167,0.187943,56852.0,56849.0,0.09914433]
[1725951444168,0.0004,56850.0,56849.0,0.09914433]
[1725951444459,0.0004,56850.0,56849.0,0.0465]
[1725951444655,0.087951,56847.0,56846.0,0.05264433]
[1725951444853,0.0004,56847.0,56844.0,0.05264433]
[1725951445152,0.0004,56847.0,56842.0,0.07009162]
[1725951445153,0.0004,56845.0,56842.0,0.08781472]
[1725951445352,0.0004,56845.0,56840.0,0.0919]
[1725951445353,0.1,56845.0,56844.0,0.07005845]
[1725951446354,0.188954,56845.0,56843.0,0.07005845]
[1725951446664,0.0004,56844.0,56843.0,0.07005845]
[1725951446860,0.088954,56845.0,56843.0,0.17005845]
[1725951447063,0.087954,56845.0,56844.0,0.0004]
[1725951447366,0.088954,56845.0,56844.0,0.0004]
[1725951448255,0.088954,56845.0,56844.0,0.05290054]
[1725951448666,0.089954,56845.0,56844.0,0.05290054]
[1725951449168,0.088954,56845.0,56844.0,0.05290054]
[1725951449366,0.089954,56845.0,56844.0,0.05290054]
[1725951452172,0.089954,56845.0,56844.0,0.0004]
[1725951459269,0.089954,56845.0,56844.0,0.05290054]
[1725951460068,0.089954,56845.0,56844.0,0.0004]
[1725951460268,0.089954,56845.0,56844.0,0.07045845]
[1725951461375,0.089954,56845.0,56844.0,0.0004]
[1725951465377,0.089954,56845.0,56844.0,0.20539738]
[1725951466279,0.089954,56845.0,56844.0,0.11758266]
[1725951467084,0.089954,56845.0,56844.0,0.0004]
[1725951467487,0.002,56845.0,56844.0,0.088355]
[1725951467673,0.002,56845.0,56844.0,0.82114928]
[1725951467868,0.002,56845.0,56844.0,0.82114751]
[1725951468072,0.002,56845.0,56844.0,0.73337816]
[1725951468877,0.089954,56845.0,56844.0,0.73337816]
[1725951469784,0.002,56845.0,56844.0,0.20561816]
[1725951470078,0.089954,56845.0,56844.0,0.31087808]
[1725951470479,0.089954,56845.0,56844.0,0.73337816]
[1725951470684,0.089954,56845.0,56844.0,0.20561816]
[1725951470981,0.089954,56845.0,56844.0,0.31105914]
[1725951472285,0.089954,56845.0,56844.0,0.20561816]
[1725951473485,0.002,56845.0,56844.0,0.3456185]
[1725951473677,0.002,56845.0,56844.0,0.88798932]
[1725951474078,0.01511792,56849.0,56848.0,0.087949]
[1725951474281,0.08794,56854.0,56849.0,0.087947]
[1725951474282,0.087947,56850.0,56849.0,0.087947]
[1725951474495,0.087947,56850.0,56849.0,0.30561016]
[1725951474684,0.087947,56850.0,56849.0,0.30521016]
[1725951475185,0.087947,56850.0,56849.0,0.4452271]
[1725951475390,0.087947,56850.0,56849.0,0.44543159]
[1725951476989,0.088947,56850.0,56849.0,0.44643159]
[1725951477382,0.089947,56850.0,56849.0,0.44743159]
[1725951479389,0.087945,56851.0,56850.0,0.087942]
[1725951479691,0.087945,56851.0,56850.0,0.44576128]
[1725951480692,0.089945,56851.0,56850.0,0.44776128]
[1725951482190,0.089945,56851.0,56850.0,0.34776128]
[1725951482395,0.089945,56851.0,56850.0,0.44776128]
[1725951483089,0.002,56851.0,56850.0,0.44776128]
[1725951483289,0.087939,56855.0,56854.0,0.087936]
[1725951483489,0.087939,56855.0,56854.0,0.34575528]
[1725951483685,0.087933,56859.0,56858.0,0.087932]
[1725951483886,0.087933,56859.0,56858.0,0.30579965]
[1725951484693,0.087933,56859.0,56858.0,0.21786765]
[1725951484895,0.087933,56859.0,56858.0,0.12086765]
[1725951484896,0.176866,56859.0,56858.0,0.12086765]
[1725951485284,0.224266,56859.0,56858.0,0.12086765]
[1725951485493,0.224266,56859.0,56858.0,0.20865118]
[1725951485693,0.224266,56859.0,56858.0,0.09118353]
[1725951486494,0.224266,56859.0,56858.0,0.0034]
[1725951486790,0.224266,56859.0,56858.0,0.0054]
[1725951488194,0.136333,56859.0,56858.0,0.0054]
[1725951489795,0.001,56859.0,56858.0,0.1054]
[1725951489993,0.001,56859.0,56858.0,0.39802479]
[1725951490191,0.087927,56863.0,56861.0,0.1]
[1725951490397,0.087927,56863.0,56862.0,0.0004]
[1725951491289,0.0469,56864.0,56863.0,0.087926]
[1725951491492,0.0041,56869.0,56865.0,0.087922]
[1725951491691,0.087919,56868.0,56866.0,0.1]
[1725951491893,0.08792,56867.0,56866.0,0.1]
[1725951492695,0.08792,56867.0,56864.0,0.05262045]
[1725951492996,0.0004,56865.0,56864.0,0.05262045]
[1725951494317,0.0024,56865.0,56864.0,0.05262045]
[1725951494899,0.0034,56865.0,56864.0,0.05262045]
[1725951495494,0.0034,56865.0,56863.0,0.15302045]
[1725951495698,0.0004,56864.0,56863.0,0.15302045]
[1725951496801,0.0004,56864.0,56863.0,0.1004]
[1725951498601,0.0014,56864.0,56863.0,0.1004]
[1725951499193,0.089324,56864.0,56863.0,0.1004]
[1725951499395,0.10390602,56864.0,56863.0,0.1004]
[1725951499700,0.10390602,56864.0,56863.0,0.0004]
[1725951500293,0.10390602,56864.0,56863.0,0.1004]
[1725951505304,0.10390602,56864.0,56863.0,0.15298996]
[1725951507404,0.10390602,56864.0,56863.0,0.1004]
[1725951509307,0.10390602,56864.0,56863.0,0.0004]
[1725951512310,0.10390602,56864.0,56863.0,0.07051994]
[1725951513717,0.19183002,56864.0,56863.0,0.07051994]
[1725951516614,0.19183002,56864.0,56863.0,0.0004]
[1725951520513,0.19183002,56864.0,56863.0,0.07066955]
[1725951520719,0.19183002,56864.0,56863.0,0.0004]
[1725951521620,0.19183002,56864.0,56863.0,0.07066734]
[1725951522313,0.19183002,56864.0,56863.0,0.0004]
[1725951528022,0.19183002,56864.0,56863.0,0.05309075]
[1725951528223,0.19183002,56864.0,56863.0,0.0004]
[1725951529524,0.19183002,56864.0,56863.0,0.05309075]
[1725951532528,0.19183002,56864.0,56863.0,0.0004]
[1725951536132,0.10390602,56864.0,56863.0,0.0004]
[1725951538126,0.19183002,56864.0,56863.0,0.0004]
[1725951538325,0.19183002,56864.0,56863.0,0.07070496]
[1725951538523,0.175852,56863.0,56862.0,0.06870496]
[1725951538723,0.087927,56862.0,56860.0,0.05274428]
[1725951538929,0.087927,56862.0,56857.0,0.06870496]
[1725951538930,0.21683966,56861.0,56859.0,0.05274428]
[1725951539129,0.30477066,56860.0,56859.0,0.05274428]
[1725951539425,0.83197066,56860.0,56859.0,0.05274428]
[1725951539626,0.83197066,56860.0,56858.0,0.05274428]
[1725951539627,0.263796,56859.0,56858.0,0.05274428]
[1725951539826,0.263796,56859.0,56852.0,0.08778353]
[1725951539827,0.175866,56858.0,56857.0,0.05274428]
[1725951540128,0.08794,56854.0,56853.0,0.08778353]
[1725951540334,0.0004,56859.0,56855.0,0.1]
[1725951540533,0.088332,56859.0,56858.0,0.1004]
[1725951541131,0.088332,56859.0,56858.0,0.0004]
[1725951541320,0.089332,56859.0,56858.0,0.0034]
[1725951541934,0.089332,56859.0,56858.0,0.1034]
[1725951542424,0.089332,56859.0,56858.0,0.1521]
[1725951542931,0.089332,56859.0,56858.0,0.0541]
[1725951545334,0.0014,56859.0,56858.0,0.0541]
[1725951545535,0.0014,56859.0,56858.0,0.1541]
[1725951546630,0.0014,56859.0,56858.0,0.0541]
[1725951546937,0.089332,56859.0,56858.0,0.0541]
[1725951548540,0.089332,56859.0,56858.0,0.10682104]
[1725951548835,0.089332,56859.0,56858.0,0.0541]
[1725951550631,0.089332,56859.0,56858.0,0.1541]
[1725951550833,0.089332,56859.0,56858.0,0.24195837]
[1725951551138,0.089332,56859.0,56858.0,0.35820918]
[1725951552841,0.089332,56859.0,56858.0,0.25820918]
[1725951555031,0.089332,56859.0,56858.0,0.0541]
[1725951558241,0.089332,56859.0,56858.0,0.10682277]
[1725951558642,0.0014,56859.0,56858.0,0.29475577]
[1725951558847,0.0014,56859.0,56858.0,0.242033]
[1725951559340,0.0014,56859.0,56858.0,0.32989137]
[1725951559546,0.0014,56859.0,56858.0,0.242033]
[1725951560749,0.0014,56859.0,56858.0,0.32989137]
[1725951561348,0.089332,56859.0,56858.0,0.32989137]
[1725951561550,0.0014,56859.0,56858.0,0.32989137]
[1725951561747,0.0014,56859.0,56858.0,0.44579575]
[1725951561940,0.0014,56859.0,56858.0,0.88557738]
[1725951562347,0.0014,56859.0,56858.0,0.97340131]
[1725951562849,0.0014,56859.0,56858.0,0.44576131]
[1725951564049,0.089332,56859.0,56858.0,0.44576131]
[1725951564453,0.089332,56859.0,56858.0,0.242033]
[1725951565150,0.089332,56859.0,56858.0,0.46326307]
[1725951565644,0.089332,56859.0,56858.0,0.35789753]
[1725951566952,0.089332,56859.0,56858.0,0.35791002]
[1725951572246,0.089332,56859.0,56858.0,0.46327556]
[1725951573147,0.089332,56859.0,56858.0,0.35791002]
[1725951573855,0.0014,56859.0,56858.0,0.46326038]
[1725951574057,0.0014,56859.0,56858.0,0.35791002]
[1725951575258,0.0014,56859.0,56858.0,0.49600078]
[1725951575460,0.087932,56860.0,56859.0,0.087932]
[1725951575756,0.087932,56860.0,56859.0,0.30954619]
[1725951577156,0.087932,56860.0,56859.0,0.31154619]
[1725951577548,0.088932,56860.0,56859.0,0.31554619]
[1725951580148,0.088932,56860.0,56859.0,0.094332]
[1725951586661,0.088932,56860.0,56859.0,0.18212453]
[1725951587553,0.088932,56860.0,56859.0,0.29806816]
[1725951588157,0.088932,56860.0,56859.0,0.34850859]
[1725951592163,0.088932,56860.0,56859.0,0.34862303]
[1725951595276,0.088932,56860.0,56859.0,0.12241071]
[1725951595476,0.088932,56860.0,56859.0,0.21034271]
[1725951599688,0.001,56860.0,56859.0,0.21034271]
[1725951600187,0.001,56860.0,56859.0,0.29827471]
[1725951600379,0.0041,56866.0,56865.0,0.087923]
[1725951600573,0.087917,56869.0,56868.0,0.087917]
[1725951600776,0.087917,56869.0,56868.0,0.188317]
[1725951600978,0.275834,56869.0,56868.0,0.0004]
[1725951601178,0.275834,56869.0,56868.0,0.07071813]
[1725951601380,0.275834,56869.0,56868.0,0.0004]
[1725951601381,0.30433962,56869.0,56868.0,0.0004]
[1725951601584,1.43185962,56869.0,56868.0,0.0004]
[1725951601987,0.087921,56866.0,56865.0,0.06961813]
[1725951602188,0.088321,56866.0,56865.0,0.06961813]
[1725951602486,0.188321,56866.0,56865.0,0.06961813]
[1725951603594,0.188321,56866.0,56865.0,0.11613491]
[1725951604093,0.087925,56864.0,56862.0,0.10546913]
[1725951604280,0.088326,56863.0,56862.0,0.10546913]
[1725951605086,0.088326,56863.0,56862.0,0.11633834]
[1725951605581,0.086826,56863.0,56862.0,0.11833834]
[1725951606485,0.086826,56863.0,56862.0,0.21833834]
[1725951607795,0.086826,56863.0,56862.0,0.102]
[1725951608799,0.086826,56863.0,56862.0,0.002]
[1725951609100,0.10137636,56863.0,56862.0,0.002]
[1725951611187,0.20137636,56863.0,56862.0,0.002]
[1725951611393,1.41690236,56863.0,56862.0,0.001]
[1725951611695,1.55571811,56863.0,56862.0,0.001]
[1725951616194,1.41690236,56863.0,56862.0,0.001]
[1725951618788,1.32897636,56863.0,56862.0,0.001]
[1725951618997,0.72897636,56863.0,56862.0,0.001]
[1725951619191,0.10137636,56863.0,56862.0,0.001]
[1725951621196,0.10137636,56863.0,56862.0,0.0536832]
[1725951621601,0.10137636,56863.0,56862.0,0.0487]
[1725951621988,0.10137636,56863.0,56862.0,0.10135549]
[1725951622200,0.10137636,56863.0,56862.0,0.10135872]
[1725951622904,0.10137636,56863.0,56862.0,0.05365872]
[1725951625394,0.10137636,56863.0,56862.0,0.001]
[1725951626498,0.10137636,56863.0,56862.0,0.05368013]
[1725951629207,0.10137636,56863.0,56862.0,0.001]
[1725951629898,0.0004,56863.0,56862.0,0.088927]
[1725951630098,0.0004,56863.0,56862.0,0.29258523]
[1725951630419,0.0004,56863.0,56862.0,0.31017028]
[1725951630603,0.0041,56870.0,56862.0,1.24433303]
[1725951630799,0.087913,56872.0,56869.0,0.188316]
[1725951631008,0.087904,56877.0,56871.0,0.0004]
[1725951631503,0.087904,56877.0,56873.0,0.05263132]
[1725951631907,0.1,56876.0,56871.0,0.0004]
[1725951632099,0.1,56876.0,56872.0,0.05262959]
[1725951632100,0.08791,56873.0,56872.0,0.05262959]
[1725951632422,0.087906,56876.0,56871.0,0.0004]
[1725951632423,0.0004,56872.0,56871.0,0.0004]
[1725951632604,0.0008,56872.0,56871.0,0.0004]
[1725951632803,0.0004,56872.0,56871.0,0.0004]
[1725951633702,0.088312,56872.0,56871.0,0.0004]
[1725951633904,0.12581663,56872.0,56871.0,0.0004]
[1725951635412,0.13581663,56872.0,56871.0,0.0004]
[1725951639017,0.13581699,56872.0,56871.0,0.0004]
[1725951640521,0.107312,56872.0,56871.0,0.0004]
[1725951641219,0.12182471,56872.0,56871.0,0.0004]
[1725951644423,0.20973671,56872.0,56871.0,0.0004]
[1725951645519,0.25583671,56872.0,56871.0,0.0004]
[1725951646824,1.47126871,56872.0,56871.0,0.0004]
[1725951647117,0.615433,56871.0,56865.0,0.0082]
[1725951647418,0.615433,56871.0,56862.0,0.05262959]
[1725951647419,0.087926,56863.0,56862.0,0.0082]
[1725951647625,0.087927,56862.0,56861.0,0.05262959]
[1725951647826,0.088327,56862.0,56861.0,0.05262959]
[1725951648122,0.087927,56862.0,56861.0,0.05262959]
[1725951648320,0.0004,56863.0,56854.0,0.19806859]
[1725951648528,0.0004,56855.0,56854.0,0.18986859]
[1725951650724,0.0014,56855.0,56854.0,0.19186859]
[1725951651126,0.0024,56855.0,56854.0,0.19586859]
[1725951654226,0.0024,56855.0,56854.0,0.29586859]